fUSD/lending_fUSD_20251023
["ID","MTS","AMOUNT","RATE_DAILY","PERIOD"]
[392141516,1761207038125,-152.0,0.00046558,3]
[392141518,1761207038135,-500.0,0.0004684,120]
[392141520,1761207038144,-165.56641401,0.00046902,28]
[392141522,1761207038154,-168.0,0.00046963,2]
[392141524,1761207038163,-300000.0,0.00047,120]
[392141526,1761207038172,-170.47,0.00047002,2]
[392141528,1761207038182,-150.83,0.00047003,120]
[392141530,1761207038191,-782.0,0.00047092,7]
[392141532,1761207038200,-1000.0,0.00047092,2]
[392141534,1761207038209,-171.82374432,0.00047425,28]
[392141536,1761207038219,-215.2,0.00047582,7]
[392141538,1761207038228,-155.86300498,0.0004835,2]
[392141540,1761207038238,-644.33,0.00049055,2]
[392141542,1761207038248,-1144.73542139,0.0005,2]
[392141544,1761207038257,-600.0,0.0005,14]
[392141546,1761207038268,-4024.58,0.0005,120]
[392141548,1761207038277,-394.09,0.00050406,2]
[392141550,1761207038287,-500.0,0.00050479,34]
[392141552,1761207038296,-170.47,0.00050617,2]
[392141554,1761207038306,-200.0,0.00050643,15]
[392141556,1761207038315,-215.2,0.00051158,7]
[392141558,1761207038324,-253.07,0.00052632,2]
[392141560,1761207038333,-160.99,0.000527,30]
[392141562,1761207038343,-300.0,0.0005297,7]
[392141564,1761207038352,-450.0,0.0005297,7]
[392141566,1761207038364,-579.78784311,0.00053,2]
[392141568,1761207038374,-988.78197421,0.00053174,7]
[392141570,1761207038383,-449.22484128,0.0005331,2]
[392141572,1761207038393,-1397.6,0.000534,30]
[392141574,1761207038402,-170.47,0.00054233,2]
[392141576,1761207038411,-1766.14,0.000547,15]
[392141578,1761207038420,-299.83,0.000547,15]
[392141580,1761207038429,-215.2,0.00054734,7]
[392141582,1761207038438,-500.0,0.00054794,2]
[392141584,1761207038447,-500.17457096,0.00054794,2]
[392141586,1761207038456,-623.70258737,0.00054794,2]
[392141588,1761207038466,-500.0,0.00054794,120]
[392141590,1761207038475,-2471.28766783,0.00055,2]
[392141592,1761207038484,-500.0,0.00055,30]
[392141594,1761207038494,-1000.0,0.00055,30]
[392141596,1761207038503,-2043.0,0.00055,30]
[392141598,1761207038512,-4024.58,0.00055,120]
[392141600,1761207038522,-200.0,0.00055486,23]
[392141602,1761207038531,-600.0,0.000555,15]
[392141604,1761207038541,-500.0,0.00055959,36]
[392141606,1761207038551,-152.0,0.00057067,4]
[392141608,1761207038560,-160.34161498,0.00057067,5]
[392141610,1761207038570,-2000.0,0.0005763,58]
[392141612,1761207038579,-1021.0,0.00058,30]
[392141613,1761207038588,-215.2,0.0005831,7]
[392141615,1761207038598,-9809.0,0.00059,120]
[392141617,1761207038607,-574.49279946,0.0005909,2]
[392141620,1761207038617,-253.07,0.0005912,2]
[392141622,1761207038629,-548.11708095,0.000594,120]
[392141624,1761207038639,-1000.0,0.00059458,8]
[392141626,1761207038648,-151.53552264,0.00059999,120]
[392141628,1761207038657,-150.0,0.00059999,120]
[392141629,1761207038666,-150.0,0.00059999,120]
[392141631,1761207038675,-1166.45550454,0.0006,30]
[392141633,1761207038685,-4024.58,0.0006,120]
[392141635,1761207038694,-379.53336,0.000604,98]
[392141637,1761207038703,-1023.0,0.00061,60]
[392141639,1761207038712,-379.53336,0.000614,103]
[392141641,1761207038722,-500.0,0.00061438,38]
[392141643,1761207038731,-2418.68629427,0.000615,120]
[392141645,1761207038741,-394.09,0.00061639,120]
[392141647,1761207038750,-182.0,0.000617,120]
[392141665,1761207038905,-215.2,0.00061886,7]
[392141667,1761207038915,-160.99,0.000619,60]
[392141670,1761207038936,-3174.18,0.000621,120]
[392141672,1761207038946,-1397.6,0.000621,30]
[392141674,1761207038956,-323.038,0.00062161,120]
[392141676,1761207038966,-2500.0,0.0006445,63]
[392141678,1761207038975,-666.97,0.00064868,120]
[392141680,1761207038985,-1000.0,0.00064999,120]
[392141682,1761207038995,-5813.17036101,0.00065,120]
[392141684,1761207039004,-571.0,0.00065,120]
[392141686,1761207039013,-19241.18,0.00065,120]
[392141688,1761207039023,-43665.1774745,0.00065,120]
[392141690,1761207039033,-60368.61,0.00065,120]
[392141692,1761207039042,-4024.58,0.00065,120]
[392141694,1761207039053,-5653.41342634,0.00065,120]
[392141696,1761207039063,-4024.58,0.00065,120]
[392141698,1761207039072,-2500.0,0.0006542,65]
[392141700,1761207039082,-215.2,0.00065462,7]
[392141702,1761207039092,-253.07,0.00065609,2]
[392141704,1761207039102,-742.55820488,0.00066,30]
[392141706,1761207039112,-198.65805276,0.00066,120]
[392141708,1761207039122,-600.0,0.000666,15]
[392141710,1761207039135,-4000.0,0.0006666,120]
[392141712,1761207039145,-500.0,0.00066918,120]
[392141714,1761207039155,-2500.0,0.0006756,65]
[392141716,1761207039164,-958.0,0.00068,120]
[392141718,1761207039174,-2500.0,0.0006832,55]
[392141720,1761207039183,-200.0,0.00068493,120]
[392141722,1761207039193,-5000.0,0.00068623,86]
[392141725,1761207039203,-5000.0,0.00068623,83]
[392141726,1761207039212,-5000.0,0.00068623,85]
[392141729,1761207039222,-5000.0,0.00068623,84]
[392141730,1761207039231,-5000.0,0.00068623,85]
[392141732,1761207039240,-2500.0,0.0006865,65]
[392141734,1761207039249,-160.99,0.000687,60]
[392141736,1761207039259,-250.96,0.00069,60]
[392141738,1761207039268,-10541.19172664,0.00069,120]
[392141740,1761207039277,-215.2,0.00069038,7]
[392141742,1761207039287,-1397.6,0.000691,30]
[392141744,1761207039297,-2500.0,0.0006968,65]
[392141746,1761207039306,-666.97,0.00069849,120]
[392141748,1761207039315,-445.0,0.00069986,120]
[392141750,1761207039325,-1000.0,0.00069999,120]
[392141752,1761207039334,-290.42057118,0.0007,120]
[392141754,1761207039344,-1000.0,0.0007,120]
[392141756,1761207039354,-500.0,0.0007,90]
[392141758,1761207039363,-4735.0,0.0007,120]
[392141760,1761207039372,-1000.0,0.0007,30]
[392141762,1761207039381,-42140.54869726,0.0007015,2]
[392141764,1761207039391,-200.0,0.00071955,120]
[392141766,1761207039401,-246.7335678,0.00072,30]
[392141768,1761207039411,-200.0,0.00072,120]
[392141770,1761207039420,-253.07,0.00072098,120]
[392141772,1761207039430,-45479.76518228,0.000721,2]
[392141774,1761207039439,-500.0,0.00072397,120]
[392141775,1761207039448,-215.2,0.00072614,7]
[392141776,1761207039457,-394.09,0.00072872,120]
[392141777,1761207039466,-200.0,0.00074,120]
[392141778,1761207039475,-2000.0,0.0007444,63]
[392141779,1761207039483,-11484.1972,0.00074444,30]
[392141780,1761207039492,-3009.3,0.000745,120]
[392141781,1761207039501,-2500.0,0.0007463,68]
[392141782,1761207039510,-666.97,0.00074831,120]
[392141783,1761207039519,-1000.0,0.00074999,120]
[392141784,1761207039528,-1356.32927117,0.00075,120]
[392141785,1761207039537,-45000.05375488,0.00075,30]
[392141786,1761207039546,-200.0,0.00076,120]
[392141787,1761207039554,-215.2,0.0007619,7]
[392141788,1761207039563,-2500.0,0.0007635,58]
[392141789,1761207039572,-533.56868172,0.000768,120]
[392141791,1761207039582,-2500.0,0.0007696,55]
[392141793,1761207039592,-196.0,0.00077,120]
[392141795,1761207039602,-182.0,0.00077,120]
[392141797,1761207039611,-500.0,0.00077877,120]
[392141799,1761207039622,-323.039,0.00078108,120]
[392141801,1761207039632,-2500.0,0.0007853,58]
[392141803,1761207039641,-253.07,0.00078587,120]
[392141805,1761207039651,-445.0,0.00078986,120]
[392141807,1761207039660,-215.2,0.00079766,7]
[392141809,1761207039669,-666.97,0.00079812,120]
[392141811,1761207039678,-2500.0,0.0007983,63]
[392141813,1761207039687,-1000.0,0.00079999,120]
[392141815,1761207039697,-196116.27156937,0.0008,2]
[392141817,1761207039706,-1512.10364937,0.0008,120]
[392141819,1761207039715,-958.0,0.0008,120]
[392141821,1761207039724,-1000.0,0.0008,120]
[392141823,1761207039733,-200.0,0.0008,120]
[392141825,1761207039743,-500.0,0.0008,90]
[392141827,1761207039753,-1000.0,0.0008,30]
[392141828,1761207039762,-31421.16240224,0.0008,120]
[392141830,1761207039771,-252.0,0.0008,120]
[392141833,1761207039781,-156.0,0.0008,120]
[392141834,1761207039790,-335.37223712,0.000801,30]
[392141836,1761207039800,-168.89,0.0008075,14]
[392141838,1761207039809,-200.0,0.00082191,120]
[392141840,1761207039818,-150.0,0.00082298,119]
[392141842,1761207039827,-215.2,0.00083342,7]
[392141844,1761207039837,-500.0,0.00083356,120]
[392141846,1761207039849,-2000.0,0.0008365,69]
[392141848,1761207039858,-394.09,0.00084105,120]
[392141850,1761207039867,-2500.0,0.0008444,61]
[392141852,1761207039876,-84910.2827,0.00084444,30]
[392141854,1761207039885,-666.97,0.00084793,120]
[392141856,1761207039894,-253.07,0.00085076,120]
[392141858,1761207039903,-3000.0,0.0008544,63]
[392141860,1761207039912,-215.2,0.00086918,7]
[392141862,1761207039921,-211384.04558278,0.000878,120]
[392141864,1761207039930,-130314.59999815,0.000878,120]
[392141866,1761207039939,-186007.82985446,0.000878,120]
[392141868,1761207039949,-2581.73375585,0.000878,120]
[392141870,1761207039958,-24318.76,0.000878,30]
[392141872,1761207039967,-4961.19,0.000878,60]
[392141874,1761207039977,-3000.0,0.0008785,63]
[392141876,1761207039987,-2500.0,0.0008863,63]
[392141878,1761207039996,-500.0,0.00088836,120]
[392141880,1761207040005,-154.0,0.00089,120]
[392141882,1761207040015,-15028.7698018,0.00089,120]
[392141884,1761207040025,-2800.0,0.0008963,63]
[392141886,1761207040034,-2500.0,0.0008963,68]
[392141888,1761207040045,-666.97,0.00089775,120]
[392141890,1761207040054,-1000.0,0.00089999,120]
[392141892,1761207040063,-903.48787015,0.0009,120]
[392141894,1761207040072,-301.53,0.0009,2]
[392141896,1761207040083,-1000.0,0.0009,120]
[392141898,1761207040093,-1000.0,0.0009,30]
[392141900,1761207040103,-215.2,0.00090494,7]
[392141902,1761207040112,-5000.0,0.000915,120]
[392141904,1761207040121,-253.07,0.00091564,120]
[392141906,1761207040130,-24318.76,0.000916,30]
[392141908,1761207040140,-4409.46,0.000919,120]
[392141910,1761207040149,-4961.19,0.000919,60]
[392141912,1761207040158,-2800.0,0.0009356,63]
[392141914,1761207040167,-323.038,0.00094054,120]
[392141916,1761207040176,-215.2,0.0009407,7]
[392141918,1761207040185,-500.0,0.00094315,120]
[392141920,1761207040194,-2500.0,0.0009444,65]
[392141922,1761207040204,-1000.0,0.00094999,120]
[392141924,1761207040213,-150.0,0.00095,120]
[392141926,1761207040223,-394.09,0.00095338,120]
[392141928,1761207040232,-160.99,0.000954,60]
[392141930,1761207040241,-2000.0,0.0009554,58]
[392141931,1761207040252,-3000.0,0.0009696,65]
[392141933,1761207040261,-24318.76,0.00097,30]
[392141936,1761207040271,-1000.0,0.00097439,120]
[392141937,1761207040280,-1749.48051337,0.000975,120]
[392141939,1761207040290,-1397.6,0.000975,30]
[392141942,1761207040300,-215.2,0.00097646,7]
[392141944,1761207040309,-4961.19,0.000977,60]
[392141945,1761207040319,-2800.0,0.0009784,62]
[392141948,1761207040330,-1326.73710755,0.00098,120]
[392141950,1761207040340,-253.07,0.00098053,120]
[392141952,1761207040350,-5000.0,0.0009874,64]
[392141954,1761207040361,-20026.06108982,0.000989,5]
[392141955,1761207040370,-541.16410071,0.00099,120]
[392141957,1761207040379,-1326.0,0.00099,120]
[392141960,1761207040389,-2061.13,0.000992,120]
[392141962,1761207040398,-24318.76,0.000992,30]
[392141964,1761207040407,-3500.0,0.0009958,62]
[392141966,1761207040416,-665130.27723883,0.0009977,56]
[392141967,1761207040426,-500.0,0.00099795,120]
[392141969,1761207040435,-1000.0,0.00099999,120]
[392141972,1761207040444,-3184.69189567,0.001,120]
[392141974,1761207040453,-200.0,0.001,120]
[392141975,1761207040462,-36345.57294966,0.001,120]
[392141977,1761207040471,-358.0,0.001,120]
[392141980,1761207040481,-4365.49,0.001,120]
[392141981,1761207040490,-1000.0,0.001,30]
[392141983,1761207040499,-20000.0,0.001,120]
[392141985,1761207040508,-4961.19,0.001,60]
[392141987,1761207040518,-1326.0,0.001,120]
[392141989,1761207040527,-215.2,0.00101223,7]
[392141991,1761207040536,-253.07,0.00104542,120]
[392141993,1761207040545,-215.2,0.00104799,7]
[392141995,1761207040555,-500.0,0.00105274,120]
[392141997,1761207040564,-2080.79910474,0.00105456,15]
[392141999,1761207040574,-609.62641852,0.00106079,15]
[392142001,1761207040583,-150.0,0.00107167,120]
[392142003,1761207040594,-215.2,0.00108375,7]
[392142005,1761207040604,-160.99,0.00109,60]
[392142007,1761207040613,-323.039,0.0011,120]
[392142009,1761207040623,-500.0,0.00110753,120]
[392142011,1761207040632,-1397.6,0.00111,30]
[392142013,1761207040641,-1397.6,0.00111,30]
[392142015,1761207040650,-253.07,0.00111031,120]
[392142017,1761207040660,-215.2,0.00111951,7]
[392142019,1761207040669,-500.0,0.00116233,120]
[392142021,1761207040678,-253.07,0.0011752,120]
[392142023,1761207040687,-500.0,0.00121712,120]
[392142025,1761207040696,-55224.53687005,0.0012345,120]
[392142027,1761207040706,-253.07,0.00124009,120]
[392142029,1761207040715,-2500.0,0.001263,62]
[392142031,1761207040724,-500.0,0.00127192,120]
[392142033,1761207040733,-4961.18,0.0013,60]
[392142035,1761207040742,-253.07,0.00130497,120]
[392142037,1761207040751,-500.0,0.00132671,120]
[392142039,1761207040761,-524.53043723,0.00134,120]
[392142041,1761207040770,-1397.6,0.00134,30]
[392142043,1761207040779,-4961.19,0.00134,60]
[392142045,1761207040789,-2177.29907344,0.00136886,2]
[392142047,1761207040798,-253.07,0.00136986,120]
[392142049,1761207040807,-160.99,0.00137,60]
[392142051,1761207040816,-500.0,0.00137,120]
[392142053,1761207040826,-500.0,0.00138151,120]
[392142055,1761207040835,-500.0,0.00139,120]
[392142057,1761207040850,-200.0,0.0014,120]
[392142059,1761207040860,-24318.76,0.0014,30]
[392142061,1761207040869,-414.554765,0.00141,120]
[392142063,1761207040877,-160.99,0.00141,60]
[392142065,1761207040886,-500.0,0.0014363,120]
[392142067,1761207040895,-2500.0,0.001462,65]
[392142069,1761207040904,-1397.6,0.00147,30]
[392142071,1761207040914,-500.0,0.0014911,120]
[392142073,1761207040923,-1138.34726146,0.0015,120]
[392142075,1761207040932,-302.94954287,0.0015,120]
[392142077,1761207040941,-177.21028,0.0015,2]
[392142079,1761207040950,-20000.0,0.0015,120]
[392142081,1761207040959,-3000.0,0.0015,120]
[392142083,1761207040968,-500.0,0.00154589,120]
[392142085,1761207040978,-24318.76,0.00155,30]
[392142087,1761207040988,-1500.0,0.0016,120]
[392142089,1761207040997,-500.0,0.00160068,120]
[392142091,1761207041006,-150.0,0.00164744,120]
[392142093,1761207041015,-500.0,0.00165548,120]
[392142095,1761207041024,-2080.79910474,0.00166011,15]
[392142097,1761207041033,-609.62641852,0.00167308,15]
[392142099,1761207041042,-3000.0,0.001696,66]
[392142101,1761207041051,-4961.19,0.0017,60]
[392142103,1761207041061,-500.0,0.00171027,120]
[392142105,1761207041070,-500.0,0.00174747,120]
[392142107,1761207041079,-500.0,0.00176507,120]
[392142109,1761207041089,-24318.76,0.00177,30]
[392142111,1761207041099,-1996.99326796,0.0017829,120]
[392142113,1761207041108,-1518.14031472,0.0018,7]
[392142115,1761207041117,-20000.0,0.0018,120]
[392142117,1761207041127,-500.0,0.00181986,120]
[392142119,1761207041136,-2000.0,0.001863,55]
[392142121,1761207041146,-500.0,0.00187466,120]
[392142123,1761207041155,-150.0,0.0019,120]
[392142125,1761207041165,-520.82969855,0.00192945,120]
[392142127,1761207041174,-2000.0,0.001963,69]
[392142129,1761207041184,-944.44444444,0.00199,120]
[392142131,1761207041193,-1399.0,0.0019979,120]
[392142133,1761207041202,-500.0,0.002,120]
[392142135,1761207041212,-2000.0,0.002,120]
[392142137,1761207041221,-579.12,0.002,120]
[392142139,1761207041230,-200.0,0.002,120]
[392142141,1761207041239,-900.0,0.002,120]
[392142143,1761207041248,-20000.0,0.002,120]
[392142145,1761207041257,-424.5309037,0.002,2]
[392142147,1761207041267,-24318.76,0.002,30]
[392142149,1761207041276,-944.44444444,0.00204489,120]
[392142151,1761207041285,-944.44444444,0.00209978,120]
[392142153,1761207041294,-8028.02445439,0.00211,30]
[392142155,1761207041304,-944.44444444,0.00215467,120]
[392142157,1761207041313,-2000.0,0.0022,120]
[392142159,1761207041322,-6000.0,0.0022,120]
[392142161,1761207041331,-944.44444444,0.00220956,120]
[392142163,1761207041341,-2000.0,0.002263,69]
[392142165,1761207041350,-944.44444444,0.00226444,120]
[392142167,1761207041359,-2080.79910474,0.00226567,15]
[392142169,1761207041368,-609.62641852,0.00228537,15]
[392142171,1761207041378,-5000.0,0.0023,120]
[392142173,1761207041387,-944.44444444,0.00231933,120]
[392142175,1761207041396,-944.44444444,0.00237422,120]
[392142177,1761207041406,-2000.0,0.0024,120]
[392142179,1761207041415,-200.0,0.0024,120]
[392142181,1761207041424,-944.44444444,0.00242911,120]
[392142183,1761207041433,-2000.0,0.002463,69]
[392142184,1761207041443,-944.44444444,0.002484,120]
[392142185,1761207041453,-500.0,0.0025,120]
[392142186,1761207041462,-339.48139012,0.0025,10]
[392142187,1761207041472,-20000.0,0.0025,120]
[392142188,1761207041481,-944.44444444,0.00253889,120]
[392142189,1761207041490,-1430.07881702,0.002574,120]
[392142190,1761207041499,-1500.0,0.0026,120]
[392142191,1761207041509,-1500.0,0.0026,120]
[392142193,1761207041518,-1500.0,0.0026,120]
[392142195,1761207041527,-1500.0,0.0026,120]
[392142197,1761207041536,-2000.0,0.0026,120]
[392142199,1761207041545,-150.0,0.00260109,120]
[392142201,1761207041554,-944.44444444,0.00264867,120]
[392142203,1761207041564,-206.8,0.00265,120]
[392142205,1761207041573,-1000.0,0.002688,120]
[392142207,1761207041583,-944.44444444,0.00270356,120]
[392142209,1761207041591,-151.0,0.00273973,120]
[392142211,1761207041601,-151.0,0.00273973,120]
[392142213,1761207041610,-220.785387,0.00273973,120]
[392142215,1761207041619,-181.89103,0.00273973,120]
[392142217,1761207041628,-151.0,0.00273973,120]
[392142219,1761207041637,-151.0,0.00273973,120]
[392142221,1761207041647,-189.213063,0.00273973,120]
[392142223,1761207041655,-944.44444444,0.00275844,120]
[392142225,1761207041664,-1962.571,0.00279,91]
[392142227,1761207041674,-2000.0,0.0028,120]
[392142229,1761207041683,-4961.19,0.0028,90]
[392142231,1761207041692,-944.44444444,0.00281333,120]
[392142233,1761207041702,-2000.0,0.002863,69]
[392142235,1761207041711,-944.44444444,0.00286822,120]
[392142237,1761207041720,-2000.0,0.002869,59]
[392142239,1761207041729,-2080.79910474,0.00287122,15]
[392142241,1761207041739,-609.62641852,0.00289766,15]
[392142243,1761207041747,-150.0,0.0029,120]
[392142245,1761207041757,-5000.0,0.002915,120]
[392142246,1761207041766,-944.44444444,0.00292311,120]
[392142249,1761207041776,-944.44444444,0.002978,120]
[392142251,1761207041786,-2000.0,0.003,120]
[392142252,1761207041795,-2000.0,0.003,120]
[392142254,1761207041804,-4657.21782398,0.003,120]
[392142257,1761207041814,-200.0,0.003,120]
[392142259,1761207041824,-1000.0,0.003,120]
[392142261,1761207041833,-20000.0,0.003,120]
[392142263,1761207041842,-5000.0,0.003,120]
[392142265,1761207041851,-24318.76,0.003,120]
[392142267,1761207041861,-944.44444444,0.00303289,120]
[392142269,1761207041870,-227.39933962,0.003099,60]
[392142271,1761207041879,-1881.59187,0.0031,106]
[392142273,1761207041888,-944.44444444,0.00314267,120]
[392142275,1761207041897,-2000.0,0.0032,120]
[392142277,1761207041906,-150.0,0.0032,120]
[392142278,1761207041919,-160.99,0.0032,120]
[392142280,1761207041928,-160.37298754,0.00325,30]
[392142282,1761207041937,-944.44444444,0.00336222,120]
[392142284,1761207041946,-2000.0,0.0034,120]
[392142286,1761207041955,-200.0,0.0034,120]
[392142288,1761207041964,-1397.6,0.0034,120]
[392142290,1761207041974,-944.44444444,0.00341711,120]
[392142292,1761207041983,-944.44444444,0.003472,120]
[392142294,1761207041993,-2080.79910474,0.00347678,15]
[392142296,1761207042002,-4053.21909063,0.0035,120]
[392142298,1761207042011,-5000.0,0.0035,90]
[392142300,1761207042020,-609.62641852,0.00350994,15]
[392142302,1761207042029,-3011.17,0.00351,120]
[392142304,1761207042039,-2000.0,0.003521,81]
[392142306,1761207042048,-944.44444444,0.00352689,120]
[392142308,1761207042057,-944.44444444,0.00358178,120]
[392142310,1761207042066,-2000.0,0.0036,120]
[392142312,1761207042075,-944.44444444,0.00363667,120]
[392142314,1761207042084,-2000.0,0.003685,69]
[392142316,1761207042094,-944.44444444,0.00369156,120]
[392142318,1761207042104,-944.44444444,0.00374644,120]
[392142320,1761207042113,-8498.42,0.003788,120]
[392142322,1761207042123,-2000.0,0.0038,120]
[392142324,1761207042133,-4961.19,0.0038,90]
[392142326,1761207042143,-944.44444444,0.00380133,120]
[392142328,1761207042152,-6107.65629243,0.00383938,120]
[392142330,1761207042162,-944.44444444,0.00385622,120]
[392142332,1761207042171,-1000.0,0.00388,120]
[392142334,1761207042181,-127680.2630056,0.003888,120]
[392142336,1761207042190,-150.0,0.0039,120]
[392142338,1761207042199,-150.0,0.0039,120]
[392142340,1761207042209,-150.0,0.0039,120]
[392142342,1761207042218,-150.0,0.0039,120]
[392142344,1761207042227,-150.0,0.0039,120]
[392142346,1761207042237,-150.0,0.0039,120]
[392142348,1761207042246,-19682.76330173,0.0039,30]
[392142350,1761207042255,-24318.76,0.0039,120]
[392142352,1761207042264,-944.44444444,0.00391111,120]
[392142354,1761207042274,-2000.0,0.003963,69]
[392142356,1761207042283,-944.44444444,0.003966,120]
[392142358,1761207042292,-920.99567313,0.00398829,120]
[392142360,1761207042301,-1397.0,0.00398898,120]
[392142362,1761207042311,-2000.0,0.004,120]
[392142364,1761207042320,-2000.0,0.004,120]
[392142366,1761207042329,-200.0,0.004,120]
[392142368,1761207042338,-20000.0,0.004,120]
[392142370,1761207042350,-5000.0,0.004,120]
[392142372,1761207042360,-165.55138473,0.004,15]
[392142374,1761207042369,-944.44444444,0.00402089,120]
[392142376,1761207042378,-944.44444444,0.00407578,120]
[392142378,1761207042387,-2080.79910474,0.00408233,15]
[392142380,1761207042396,-609.62641852,0.00412223,15]
[392142382,1761207042405,-944.44444444,0.00413067,120]
[392142384,1761207042414,-944.44444444,0.00418556,120]
[392142386,1761207042423,-2000.0,0.0042,120]
[392142388,1761207042432,-944.44444444,0.00424044,120]
[392142390,1761207042442,-944.44444444,0.00429533,120]
[392142392,1761207042453,-3000.0,0.0043,120]
[392142394,1761207042462,-944.44444444,0.00435022,120]
[392142396,1761207042472,-1500.0,0.004369,51]
[392142398,1761207042481,-2000.0,0.0044,120]
[392142400,1761207042490,-200.0,0.0044,120]
[392142403,1761207042500,-944.44444444,0.00440511,120]
[392142405,1761207042509,-2000.0,0.0044444,69]
[392142407,1761207042519,-944.44444444,0.00446,120]
[392142409,1761207042528,-7777.0,0.004469,120]
[392142411,1761207042537,-5000.0,0.0045,90]
[392142425,1761207042659,-944.44444444,0.00451489,120]
[392142427,1761207042670,-2018.83105,0.00452826,115]
[392142429,1761207042679,-944.44444444,0.00456978,120]
[392142431,1761207042689,-12136.50078762,0.0045885,120]
[392142433,1761207042698,-2000.0,0.0046,120]
[392142435,1761207042707,-944.44444444,0.00462467,120]
[392142437,1761207042717,-2000.0,0.004638,69]
[392142438,1761207042726,-944.44444444,0.00467956,120]
[392142440,1761207042735,-2080.79910474,0.00468789,15]
[392142443,1761207042745,-944.44444444,0.00473444,120]
[392142445,1761207042755,-609.62641852,0.00473452,15]
[392142447,1761207042764,-700.00000001,0.00474747,120]
[392142448,1761207042774,-13612.359999,0.004788,120]
[392142450,1761207042783,-944.44444444,0.00478933,120]
[392142453,1761207042792,-2000.0,0.0048,120]
[392142455,1761207042802,-45389.62201038,0.0048,120]
[392142457,1761207042811,-944.44444444,0.00484422,120]
[392142459,1761207042820,-1000.0,0.00488,120]
[392142461,1761207042830,-944.44444444,0.00489911,120]
[392142463,1761207042839,-150.0,0.0049,120]
[392142465,1761207042853,-150.0,0.0049,120]
[392142467,1761207042863,-150.0,0.0049,120]
[392142469,1761207042872,-150.0,0.0049,120]
[392142471,1761207042882,-705.61082194,0.0049,120]
[392142473,1761207042894,-542.31142831,0.0049,120]
[392142475,1761207042903,-150.0,0.0049,120]
[392142477,1761207042913,-91829.76523306,0.0049,120]
[392142479,1761207042922,-944.44444444,0.004954,120]
[392142481,1761207042932,-2000.0,0.004963,69]
[392142483,1761207042942,-220.77691775,0.00499,120]
[392142485,1761207042951,-1000.0,0.00499999,120]
[392142487,1761207042960,-50000.0,0.005,90]
[392142489,1761207042969,-2000.0,0.005,120]
[392142491,1761207042979,-2000.0,0.005,120]
[392142493,1761207042989,-200.0,0.005,120]
[392142495,1761207042999,-20000.0,0.005,120]
[392142497,1761207043008,-5000.0,0.005,120]
[392142499,1761207043017,-944.44444444,0.00500889,120]
[392142501,1761207043027,-944.44444444,0.00506378,120]
[392142503,1761207043036,-3240.90998685,0.0051,120]
[392142505,1761207043046,-944.44444444,0.00511867,120]
[392142507,1761207043056,-944.44444444,0.00517356,120]
[392142509,1761207043066,-2000.0,0.0052,120]
[392142511,1761207043075,-5000.0,0.0052,120]
[392142512,1761207043084,-944.44444444,0.00522844,120]
[392142514,1761207043095,-944.44444444,0.00528333,120]
[392142516,1761207043106,-2080.79910474,0.00529344,15]